bitfinex-derivatives/quotes_BTCF0:USTF0_20260221
["timestamp","ask_amount","ask_price","bid_price","bid_amount"]
[1771698590198,0.014595,68537.0,68530.0,0.014596]
[1771698594912,0.014595,68537.0,68530.0,0.029192]
[1771698595912,0.014595,68537.0,68530.0,0.014596]
[1771698597013,0.014595,68537.0,68530.0,0.029192]
[1771698597613,0.014595,68537.0,68530.0,0.014596]
[1771698597915,0.014595,68537.0,68530.0,0.029192]
[1771698598508,0.014595,68537.0,68530.0,0.014596]
[1771698599114,0.02919,68537.0,68530.0,0.014596]
[1771698599506,0.014595,68536.0,68530.0,0.014596]
[1771698600616,0.014595,68537.0,68530.0,0.014596]
[1771698601012,0.014595,68537.0,68531.0,0.014596]
[1771698601211,0.014593,68546.0,68539.0,0.014594]
[1771698601416,0.014592,68548.0,68540.0,0.014594]
[1771698601721,0.014593,68547.0,68540.0,0.014594]
[1771698601912,0.014592,68548.0,68537.0,0.014595]
[1771698602110,0.014592,68547.0,68540.0,0.014594]
[1771698603012,0.014592,68551.0,68528.0,0.32772351]
[1771698603013,0.42625364,68550.0,68528.0,0.32772351]
[1771698603210,0.014595,68537.0,68530.0,0.014596]
[1771698603411,0.014595,68537.0,68528.0,0.014596]
[1771698603412,0.014595,68535.0,68528.0,0.014596]
[1771698603612,0.014595,68535.0,68529.0,0.014596]
[1771698604116,0.014595,68536.0,68529.0,0.014596]
[1771698605014,0.014594,68542.0,68531.0,0.014596]
[1771698605213,0.014594,68540.0,68532.0,0.014596]
[1771698605819,0.014594,68539.0,68533.0,0.014595]
[1771698606310,0.014594,68539.0,68532.0,0.014596]
[1771698607618,0.014595,68536.0,68529.0,0.014596]
[1771698608920,0.014595,68536.0,68530.0,0.014596]
[1771698610820,0.014595,68537.0,68530.0,0.014596]
[1771698619029,0.014594,68538.0,68531.0,0.014596]
[1771698620820,0.014594,68539.0,68530.0,0.014596]
[1771698621021,0.014594,68539.0,68532.0,0.014595]
[1771698624326,0.014594,68539.0,68532.0,0.02919]
[1771698625517,0.014594,68539.0,68533.0,0.014595]
[1771698625715,0.014594,68540.0,68533.0,0.014595]
[1771698625920,0.36806897,68545.0,68533.0,0.014595]
[1771698625921,0.014593,68546.0,68536.0,0.014595]
[1771698626222,0.014593,68544.0,68537.0,0.014595]
[1771698626621,0.014593,68544.0,68537.0,0.02919]
[1771698627129,0.014593,68544.0,68538.0,0.014594]
[1771698628029,0.015593,68544.0,68538.0,0.014594]
[1771698628630,0.016593,68544.0,68538.0,0.014594]
[1771698629529,0.002,68544.0,68538.0,0.014594]
[1771698630931,0.001,68544.0,68538.0,0.014594]
[1771698631128,0.002,68544.0,68538.0,0.014594]
[1771698631433,0.014592,68551.0,68543.0,0.014593]
[1771698631733,0.014592,68549.0,68542.0,0.014593]
[1771698632534,0.014592,68548.0,68542.0,0.014593]
[1771698632735,0.014592,68548.0,68542.0,0.015593]
[1771698632935,0.014592,68547.0,68542.0,0.001]
[1771698633234,0.014593,68546.0,68542.0,0.001]
[1771698633824,0.014593,68546.0,68540.0,0.014594]
[1771698634429,0.015593,68546.0,68540.0,0.014594]
[1771698635842,0.014593,68546.0,68540.0,0.014594]
[1771698638742,0.014592,68549.0,68541.0,0.014594]
[1771698638934,0.014592,68549.0,68542.0,0.014593]
[1771698640149,0.014592,68548.0,68541.0,0.014594]
[1771698640351,0.014593,68547.0,68540.0,0.014594]
[1771698640945,0.014593,68547.0,68540.0,0.029188]
[1771698641350,0.014593,68547.0,68540.0,0.014594]
[1771698641753,0.014593,68547.0,68540.0,0.029188]
[1771698644048,0.014593,68547.0,68540.0,0.014594]
[1771698650750,0.014593,68544.0,68536.0,0.014595]
[1771698650956,0.014593,68544.0,68537.0,0.014595]
[1771698651260,0.014593,68544.0,68536.0,0.014595]
[1771698652156,0.014593,68544.0,68537.0,0.014595]
[1771698654254,0.029186,68544.0,68536.0,0.014595]
[1771698654457,0.014593,68544.0,68536.0,0.014595]
[1771698655054,0.014593,68544.0,68536.0,0.02919]
[1771698655968,0.014593,68544.0,68537.0,0.014595]
[1771698660566,0.014592,68549.0,68539.0,0.014594]
[1771698660771,0.029186,68547.0,68539.0,0.014594]
[1771698661070,0.014593,68546.0,68539.0,0.014594]
[1771698661674,0.014593,68546.0,68539.0,0.015594]
[1771698662472,0.014593,68546.0,68539.0,0.014594]
[1771698663072,0.014593,68546.0,68538.0,0.014594]
[1771698667973,0.014593,68545.0,68537.0,0.014594]
[1771698668375,0.014593,68544.0,68536.0,0.014595]
[1771698668574,0.014593,68543.0,68535.0,0.014595]
[1771698668869,0.014594,68542.0,68535.0,0.014595]
[1771698670378,0.014593,68543.0,68535.0,0.014595]
[1771698670581,0.014593,68544.0,68537.0,0.014594]
[1771698670877,0.014593,68545.0,68537.0,0.014594]
[1771698671575,0.014593,68545.0,68537.0,0.015594]
[1771698671982,0.014593,68545.0,68537.0,0.030188]
[1771698672280,0.014592,68548.0,68539.0,0.014594]
[1771698672474,0.014593,68547.0,68539.0,0.014594]
[1771698675578,0.20306312,68546.0,68539.0,0.014594]
[1771698675779,0.014593,68547.0,68539.0,0.014594]
[1771698675980,0.20306312,68546.0,68539.0,0.014594]
[1771698676182,0.014593,68547.0,68539.0,0.014594]
[1771698676377,0.20306864,68546.0,68536.0,0.014595]
[1771698676582,0.014593,68543.0,68535.0,0.014595]
[1771698677581,0.014593,68543.0,68535.0,0.02919]
[1771698677782,0.014593,68544.0,68536.0,0.014595]
[1771698678084,0.014593,68544.0,68538.0,0.0008]
[1771698678285,0.014593,68544.0,68536.0,0.014595]
[1771698681182,0.014593,68546.0,68536.0,0.014595]
[1771698681488,0.014593,68544.0,68536.0,0.014595]
[1771698682393,0.014593,68544.0,68536.0,0.015595]
[1771698682691,0.014593,68544.0,68536.0,0.014595]
[1771698682894,0.014593,68544.0,68536.0,0.015595]
[1771698684292,0.014593,68544.0,68536.0,0.014595]
[1771698684495,0.014593,68546.0,68538.0,0.014594]
[1771698684789,0.20311683,68545.0,68538.0,0.014594]
[1771698684985,0.014593,68546.0,68538.0,0.014594]
[1771698685196,0.014593,68544.0,68536.0,0.014595]
[1771698686986,0.014593,68544.0,68536.0,0.02919]
[1771698687187,0.014593,68544.0,68536.0,0.014595]
[1771698688793,0.014593,68544.0,68536.0,0.02919]
[1771698689597,0.014593,68545.0,68537.0,0.014595]
[1771698691508,0.014593,68543.0,68535.0,0.014595]
[1771698691708,0.014593,68543.0,68536.0,0.014595]
[1771698691917,0.014593,68544.0,68536.0,0.014595]
[1771698692210,0.014593,68544.0,68537.0,0.014595]
[1771698693108,0.014593,68545.0,68537.0,0.014595]
[1771698694709,0.014593,68545.0,68537.0,0.015595]
[1771698695210,0.014593,68545.0,68537.0,0.014595]
[1771698699710,0.014592,68548.0,68535.0,0.014595]
[1771698699906,0.014592,68548.0,68531.0,0.70803655]
[1771698700106,0.014592,68548.0,68539.0,0.014594]
[1771698700307,0.014592,68549.0,68540.0,0.014594]
[1771698700504,0.014592,68547.0,68539.0,0.014594]
[1771698701303,0.014591,68552.0,68543.0,0.014593]
[1771698701508,0.21796391,68551.0,68543.0,0.014593]
[1771698701805,0.014592,68551.0,68543.0,0.014593]
[1771698702512,0.014592,68550.0,68542.0,0.014593]
[1771698702911,0.014592,68551.0,68543.0,0.014593]
[1771698706711,0.014592,68550.0,68542.0,0.014593]
[1771698711323,0.014593,68545.0,68536.0,0.014595]
[1771698712727,0.014593,68545.0,68526.0,0.38031404]
[1771698712728,0.26128178,68569.0,68543.0,0.36571704]
[1771698712910,0.01459,68559.0,68547.0,0.029184]
[1771698713221,0.01459,68559.0,68548.0,0.014592]
[1771698713222,0.02918,68559.0,68548.0,0.014592]
[1771698713618,0.01459,68558.0,68548.0,0.014592]
[1771698714223,0.01459,68561.0,68550.0,0.014592]
[1771698714415,0.01459,68560.0,68550.0,0.014592]
[1771698715621,0.20384972,68559.0,68550.0,0.014592]
[1771698715923,0.20384972,68558.0,68550.0,0.014592]
[1771698716124,0.20384972,68557.0,68550.0,0.014592]
[1771698716423,0.20384972,68556.0,68550.0,0.015592]
[1771698716612,0.01459,68560.0,68550.0,0.014592]
[1771698716814,0.20381331,68559.0,68550.0,0.014592]
[1771698717018,0.20381331,68558.0,68550.0,0.014592]
[1771698717325,0.20381331,68557.0,68550.0,0.014592]
[1771698717621,0.01459,68560.0,68549.0,0.014592]
[1771698717922,0.2037845,68559.0,68549.0,0.014592]
[1771698718123,0.2037845,68558.0,68549.0,0.014592]
[1771698718423,0.01459,68560.0,68549.0,0.014592]
[1771698718424,0.2037845,68557.0,68549.0,0.014592]
[1771698718723,0.01459,68560.0,68549.0,0.014592]
[1771698718922,0.20376145,68559.0,68549.0,0.014592]
[1771698719223,0.20376145,68558.0,68549.0,0.014592]
[1771698719424,0.20376145,68557.0,68549.0,0.014592]
[1771698719627,0.01459,68559.0,68549.0,0.014592]
[1771698719826,0.20374266,68558.0,68549.0,0.014592]
[1771698720032,0.20374266,68557.0,68549.0,0.015592]
[1771698720323,0.01459,68559.0,68549.0,0.015592]
[1771698720521,0.20374125,68558.0,68549.0,0.014592]
[1771698720721,0.20374125,68557.0,68549.0,0.014592]
[1771698720924,0.01459,68558.0,68549.0,0.014592]
[1771698721124,0.20374116,68557.0,68549.0,0.014592]
[1771698721424,0.01459,68558.0,68549.0,0.014592]
[1771698721623,0.20372668,68557.0,68549.0,0.014592]
[1771698721825,0.01459,68558.0,68549.0,0.014592]
[1771698722126,0.20372668,68557.0,68549.0,0.014592]
[1771698722425,0.01459,68558.0,68549.0,0.014592]
[1771698722620,0.20371592,68557.0,68549.0,0.014592]
[1771698722927,0.20371592,68556.0,68549.0,0.014592]
[1771698723226,0.01459,68558.0,68549.0,0.014592]
[1771698723522,0.20370856,68557.0,68549.0,0.014592]
[1771698723724,0.20370856,68556.0,68549.0,0.014592]
[1771698723925,0.01459,68558.0,68549.0,0.014592]
[1771698724224,0.20370856,68557.0,68549.0,0.014592]
[1771698724424,0.20370856,68556.0,68549.0,0.014592]
[1771698724626,0.01459,68558.0,68549.0,0.014592]
[1771698724829,0.20370435,68557.0,68549.0,0.014592]
[1771698725027,0.20370435,68556.0,68549.0,0.014592]
[1771698725217,0.01459,68558.0,68549.0,0.014592]
[1771698725417,0.20370308,68557.0,68549.0,0.014592]
[1771698725618,0.01459,68558.0,68549.0,0.014592]
[1771698726020,0.014591,68555.0,68545.0,0.014593]
[1771698728533,0.01459,68557.0,68547.0,0.014592]
[1771698728731,0.014591,68556.0,68547.0,0.014592]
[1771698738037,0.014591,68556.0,68550.0,0.00088]
[1771698738237,0.014591,68556.0,68547.0,0.014592]
[1771698738442,0.01459,68557.0,68548.0,0.014592]
[1771698739739,0.01459,68558.0,68548.0,0.014592]
[1771698741636,0.01459,68558.0,68548.0,0.015592]
[1771698741838,0.01459,68558.0,68549.0,0.014592]
[1771698742039,0.01459,68560.0,68550.0,0.014592]
[1771698743636,0.01459,68560.0,68551.0,0.014592]
[1771698744143,0.01459,68560.0,68550.0,0.014592]
[1771698744541,0.01459,68560.0,68550.0,0.015592]
[1771698744841,0.86792558,68593.0,68550.0,0.43065333]
[1771698745047,0.86792558,68593.0,68556.0,0.01459]
[1771698745048,0.014588,68567.0,68556.0,0.01459]
[1771698745345,0.014588,68567.0,68558.0,0.01459]
[1771698745547,0.20323438,68566.0,68557.0,0.01459]
[1771698745739,0.014589,68566.0,68557.0,0.01459]
[1771698746640,0.37685322,68590.0,68561.0,0.37283452]
[1771698746844,0.014587,68574.0,68564.0,0.014589]
[1771698747044,0.19877844,68573.0,68564.0,0.029178]
[1771698747340,0.014587,68575.0,68565.0,0.014589]
[1771698747546,0.22784264,68574.0,68565.0,0.014589]
[1771698747740,0.029175,68574.0,68565.0,0.014589]
[1771698748139,0.014581,68600.0,68569.0,0.37283452]
[1771698748338,0.014584,68587.0,68575.0,0.014586]
[1771698748538,0.014584,68588.0,68575.0,0.014586]
[1771698748738,0.014584,68586.0,68575.0,0.014586]
[1771698749446,0.014584,68586.0,68576.0,0.014586]
[1771698749747,0.014584,68587.0,68576.0,0.014586]
[1771698749936,0.014583,68593.0,68581.0,0.014585]
[1771698750134,0.014584,68589.0,68577.0,0.014586]
[1771698750334,0.014584,68589.0,68579.0,0.014586]
[1771698750546,0.014583,68590.0,68579.0,0.014586]
[1771698751550,0.36232605,68606.0,68580.0,0.07140381]
[1771698751735,0.36232605,68606.0,68580.0,0.014585]
[1771698751736,0.014583,68594.0,68580.0,0.014585]
[1771698752039,0.014583,68593.0,68582.0,0.014585]
[1771698752942,0.014583,68593.0,68583.0,0.014585]
[1771698755047,0.014583,68593.0,68582.0,0.014585]
[1771698755246,0.014583,68593.0,68583.0,0.001]
[1771698756350,0.36232605,68599.0,68583.0,0.001]
[1771698756550,0.014585,68584.0,68572.0,0.014587]
[1771698756743,0.014585,68584.0,68573.0,0.014587]
[1771698758556,0.014584,68585.0,68574.0,0.014587]
[1771698759256,0.014585,68584.0,68573.0,0.014587]
[1771698759451,0.014584,68585.0,68574.0,0.014587]
[1771698760055,0.001,68584.0,68574.0,0.014587]
[1771698760355,0.015585,68584.0,68574.0,0.014587]
[1771698760653,0.014585,68584.0,68574.0,0.014587]
[1771698761248,0.015585,68584.0,68574.0,0.014587]
[1771698761748,0.001,68584.0,68575.0,0.014586]
[1771698762145,0.001,68584.0,68576.0,0.014586]
[1771698762452,0.014584,68586.0,68576.0,0.014586]
[1771698762840,0.014585,68584.0,68573.0,0.014587]
[1771698763246,0.014585,68584.0,68574.0,0.014587]
[1771698763955,0.015585,68584.0,68574.0,0.014587]
[1771698766058,0.014585,68583.0,68572.0,0.014587]
[1771698766259,0.014585,68583.0,68573.0,0.014587]
[1771698767149,0.014585,68584.0,68573.0,0.029174]
[1771698767350,0.001,68583.0,68574.0,0.014587]
[1771698768457,0.014585,68584.0,68574.0,0.014587]
[1771698768758,0.001,68583.0,68574.0,0.014587]
[1771698768957,0.015585,68583.0,68573.0,0.014587]
[1771698769157,0.35721436,68596.0,68573.0,0.014587]
[1771698769357,0.014584,68588.0,68577.0,0.014586]
[1771698769746,0.014584,68588.0,68576.0,0.014586]
[1771698770058,0.014584,68588.0,68573.0,0.014587]
[1771698770059,0.014584,68586.0,68575.0,0.014586]
[1771698770253,0.35721436,68589.0,68568.0,0.014588]
[1771698770453,0.37179836,68588.0,68569.0,0.014588]
[1771698770656,0.37179836,68588.0,68558.0,0.01459]
[1771698770657,0.014588,68570.0,68558.0,0.01459]
[1771698770860,0.53422467,68580.0,68563.0,0.014589]
[1771698770861,0.014587,68575.0,68563.0,0.014589]
[1771698771054,0.014586,68576.0,68565.0,0.014588]
[1771698771459,0.014586,68576.0,68562.0,0.014589]
[1771698771647,0.35721436,68580.0,68569.0,0.001]
[1771698771853,0.014586,68577.0,68569.0,0.001]
[1771698772052,0.014586,68578.0,68569.0,0.001]
[1771698772358,0.014586,68577.0,68569.0,0.001]
[1771698773459,0.014586,68577.0,68568.0,0.014588]
[1771698774259,0.35721436,68587.0,68571.0,0.014587]
[1771698774462,0.014586,68577.0,68568.0,0.014588]
[1771698774662,0.015586,68577.0,68568.0,0.014588]
[1771698775156,0.001,68577.0,68568.0,0.014588]
[1771698776462,0.014586,68578.0,68568.0,0.014588]
[1771698776964,0.014586,68577.0,68568.0,0.014588]
[1771698778068,0.014585,68580.0,68569.0,0.014588]
[1771698778364,0.014586,68579.0,68569.0,0.014588]
[1771698779062,0.014586,68578.0,68568.0,0.014588]
[1771698779259,0.014586,68577.0,68568.0,0.014588]
[1771698779776,0.014586,68577.0,68569.0,0.001]
[1771698780463,0.014586,68577.0,68568.0,0.014588]
[1771698780865,0.014586,68578.0,68568.0,0.014588]
[1771698781465,0.014586,68577.0,68568.0,0.014588]
[1771698781858,0.014586,68578.0,68568.0,0.014588]
[1771698782461,0.014584,68589.0,68575.0,0.014586]
[1771698782658,0.014584,68586.0,68576.0,0.014586]
[1771698782857,0.014584,68587.0,68573.0,0.014587]
[1771698783158,0.014584,68585.0,68576.0,0.014586]
[1771698783562,0.014584,68585.0,68575.0,0.014586]
[1771698784565,0.014586,68579.0,68568.0,0.014588]
[1771698784761,0.014585,68580.0,68560.0,0.43837261]
[1771698784762,0.014586,68580.0,68565.0,0.36725656]
[1771698785066,0.014586,68579.0,68570.0,0.17701031]
[1771698785259,0.014586,68579.0,68569.0,0.014588]
[1771698786062,0.014586,68578.0,68569.0,0.014588]
[1771698786567,0.014586,68579.0,68569.0,0.014588]
[1771698786766,0.014586,68578.0,68569.0,0.014588]
[1771698786963,0.014586,68578.0,68568.0,0.014588]
[1771698787166,0.014586,68576.0,68562.0,0.014589]
[1771698787367,0.014586,68576.0,68566.0,0.014588]
[1771698787569,0.014587,68574.0,68564.0,0.014589]
[1771698787869,0.014587,68573.0,68564.0,0.014589]
[1771698788767,0.014587,68573.0,68565.0,0.014589]
[1771698789474,0.014589,68563.0,68553.0,0.014591]
[1771698789673,0.014589,68562.0,68555.0,0.014591]
[1771698790171,0.014589,68562.0,68554.0,0.014591]
[1771698790372,0.014589,68562.0,68554.0,0.3051323]
[1771698791176,0.38652489,68580.0,68554.0,0.2905413]
[1771698791370,0.014589,68565.0,68557.0,0.01459]
[1771698791578,0.014589,68564.0,68556.0,0.01459]
[1771698792374,0.014587,68572.0,68561.0,0.014589]
[1771698792574,0.014587,68572.0,68564.0,0.014589]
[1771698792775,0.014587,68571.0,68562.0,0.3051303]
[1771698792971,0.014587,68571.0,68563.0,0.014589]
[1771698794076,0.014585,68582.0,68572.0,0.014587]
[1771698794270,0.014585,68582.0,68574.0,0.014586]
[1771698794770,0.014585,68581.0,68572.0,0.014587]
[1771698796076,0.014585,68580.0,68569.0,0.014588]
[1771698796273,0.014588,68567.0,68566.0,0.3343063]
[1771698796466,0.014587,68573.0,68550.0,0.17701031]
[1771698796669,0.014586,68577.0,68567.0,0.014588]
[1771698796874,0.014587,68574.0,68566.0,0.014588]
[1771698797074,0.014587,68573.0,68565.0,0.014589]
[1771698797273,0.014587,68572.0,68564.0,0.014589]
[1771698797478,0.014587,68574.0,68565.0,0.014589]
[1771698797780,0.014587,68573.0,68564.0,0.014589]
[1771698798875,0.014586,68577.0,68567.0,0.014588]
[1771698799180,0.014586,68575.0,68567.0,0.014588]
[1771698799571,0.014586,68575.0,68566.0,0.014588]
[1771698799981,0.014587,68574.0,68566.0,0.014588]
[1771698800877,0.014586,68577.0,68568.0,0.014588]
[1771698801081,0.014586,68577.0,68567.0,0.014588]
[1771698801270,0.001,68574.0,68568.0,0.014588]
[1771698801473,0.001,68574.0,68569.0,0.014588]
[1771698801883,0.014586,68577.0,68569.0,0.014588]
[1771698802076,0.029172,68577.0,68568.0,0.014588]
[1771698802679,0.014586,68575.0,68563.0,0.014589]
[1771698802886,0.014587,68573.0,68564.0,0.014589]
[1771698804280,0.029174,68573.0,68564.0,0.014589]
[1771698804580,0.014588,68570.0,68562.0,0.014589]
[1771698805689,0.014588,68569.0,68561.0,0.014589]
[1771698806188,0.014588,68569.0,68561.0,0.029178]
[1771698807084,0.014588,68569.0,68563.0,0.00084]
[1771698807290,0.014588,68569.0,68562.0,0.014589]
[1771698808082,0.014587,68575.0,68559.0,0.17701031]
[1771698808386,0.001,68569.0,68566.0,0.014588]
[1771698808686,0.014587,68573.0,68566.0,0.014588]
[1771698809385,0.014587,68572.0,68565.0,0.014589]
[1771698810084,0.014587,68572.0,68566.0,0.00084]
[1771698810290,0.014587,68573.0,68566.0,0.014588]
[1771698810787,0.014587,68572.0,68565.0,0.014589]
[1771698811184,0.014587,68574.0,68566.0,0.014588]
[1771698811387,0.014587,68574.0,68567.0,0.014588]
[1771698811588,0.014586,68576.0,68567.0,0.014588]
[1771698811790,0.014587,68574.0,68567.0,0.014588]
[1771698812587,0.014587,68575.0,68567.0,0.014588]
[1771698812888,0.014586,68575.0,68567.0,0.014588]
[1771698813095,0.014584,68587.0,68570.0,0.014587]
[1771698813284,0.029172,68578.0,68570.0,0.014587]
[1771698813487,0.014586,68578.0,68570.0,0.014587]
[1771698813692,0.014586,68578.0,68569.0,0.014588]
[1771698815087,0.029172,68578.0,68569.0,0.014588]
[1771698815287,0.014586,68577.0,68569.0,0.014588]
[1771698815495,0.014586,68580.0,68569.0,0.014588]
[1771698815794,0.014585,68581.0,68570.0,0.17701031]
[1771698815995,0.014585,68581.0,68569.0,0.014588]
[1771698816188,0.014586,68578.0,68569.0,0.014588]
[1771698817094,0.014586,68577.0,68569.0,0.014588]
[1771698819096,0.014586,68577.0,68568.0,0.014588]
[1771698819296,0.014586,68577.0,68569.0,0.014588]
[1771698819797,0.014586,68577.0,68568.0,0.014588]
[1771698820296,0.014586,68576.0,68568.0,0.014588]
[1771698820794,0.014586,68576.0,68558.0,0.32772351]
[1771698820795,0.38760522,68579.0,68557.0,0.32772351]
[1771698821094,0.014588,68567.0,68558.0,0.01459]
[1771698821293,0.014588,68566.0,68558.0,0.01459]
[1771698821695,0.014588,68566.0,68557.0,0.01459]
[1771698821894,0.014588,68566.0,68558.0,0.01459]
[1771698822194,0.014587,68571.0,68562.0,0.014589]
[1771698822601,0.014587,68572.0,68563.0,0.014589]
[1771698823201,0.014587,68571.0,68563.0,0.014589]
[1771698823403,0.014587,68571.0,68562.0,0.014589]
[1771698823404,0.014587,68575.0,68564.0,0.014589]
[1771698823602,0.014587,68572.0,68564.0,0.014589]
[1771698823808,0.014587,68572.0,68563.0,0.014589]
[1771698824099,0.014587,68572.0,68564.0,0.014589]
[1771698824599,0.014587,68572.0,68563.0,0.014589]
[1771698826204,0.014587,68574.0,68557.0,0.40390815]
[1771698826403,0.014587,68573.0,68564.0,0.014589]
[1771698827098,0.014587,68572.0,68564.0,0.014589]
[1771698829506,0.014587,68571.0,68563.0,0.014589]
[1771698832105,0.014587,68573.0,68565.0,0.014589]
[1771698832806,0.014587,68572.0,68565.0,0.014589]
[1771698833006,0.014587,68572.0,68564.0,0.014589]
[1771698833408,0.014587,68573.0,68565.0,0.014588]
[1771698833905,0.014587,68572.0,68565.0,0.014588]
[1771698834402,0.014587,68572.0,68564.0,0.014589]
[1771698835506,0.029174,68572.0,68564.0,0.014589]
[1771698836208,0.014586,68578.0,68564.0,0.014589]
[1771698836512,0.014586,68578.0,68561.0,0.014589]
[1771698836513,0.014587,68572.0,68565.0,0.014589]
[1771698837012,0.014586,68576.0,68562.0,0.014589]
[1771698837215,0.014587,68574.0,68566.0,0.014588]
[1771698837514,0.014587,68574.0,68567.0,0.014588]
[1771698838713,0.014587,68573.0,68566.0,0.014588]
[1771698838912,0.014587,68572.0,68565.0,0.014589]
[1771698839612,0.014588,68570.0,68563.0,0.014589]
[1771698840115,0.014588,68570.0,68564.0,0.014589]
[1771698840508,0.014587,68571.0,68564.0,0.014589]
[1771698842513,0.014588,68567.0,68560.0,0.01459]
[1771698842909,0.014588,68568.0,68560.0,0.01459]
[1771698843516,0.014588,68567.0,68560.0,0.01459]
[1771698844917,0.014588,68566.0,68560.0,0.01459]
[1771698845115,0.014588,68566.0,68551.0,0.38931815]
[1771698845116,0.014588,68567.0,68553.0,0.014591]
[1771698845314,0.014588,68567.0,68560.0,0.01459]
[1771698845517,0.029176,68567.0,68560.0,0.01459]
[1771698845916,0.014588,68567.0,68560.0,0.01459]
[1771698846915,0.01459,68559.0,68555.0,0.32772351]
[1771698847119,0.01459,68559.0,68552.0,0.014591]
[1771698847517,0.01459,68558.0,68552.0,0.014591]
[1771698848218,0.01459,68557.0,68551.0,0.014592]
[1771698848418,0.01459,68561.0,68546.0,0.014593]
[1771698848611,0.014591,68552.0,68546.0,0.014593]
[1771698848811,0.36649405,68562.0,68542.0,0.014593]
[1771698849012,0.01459,68558.0,68542.0,0.014593]
[1771698849211,0.014592,68548.0,68542.0,0.014593]
[1771698849820,0.014592,68549.0,68543.0,0.014593]
[1771698850619,0.014592,68550.0,68543.0,0.029186]
[1771698850922,0.014592,68550.0,68543.0,0.014593]
[1771698852124,0.014592,68549.0,68543.0,0.014593]
[1771698852726,0.014592,68550.0,68543.0,0.014593]
[1771698853128,0.014593,68543.0,68534.0,0.014595]
[1771698853328,0.014593,68543.0,68536.0,0.014595]
[1771698853522,0.014593,68542.0,68536.0,0.014595]
[1771698859637,0.014593,68542.0,68534.0,0.014595]
[1771698860140,0.014593,68542.0,68536.0,0.014595]
[1771698860531,0.014593,68542.0,68536.0,0.02919]
[1771698861041,0.014593,68542.0,68536.0,0.03007]
[1771698861332,0.014593,68542.0,68536.0,0.014595]
[1771698861839,0.014593,68543.0,68537.0,0.014594]
[1771698862434,0.3672284,68551.0,68532.0,0.014596]
[1771698862640,0.014594,68542.0,68535.0,0.014595]
[1771698865535,0.014592,68549.0,68541.0,0.014593]
[1771698865738,0.014592,68549.0,68542.0,0.014593]
[1771698865938,0.014592,68551.0,68543.0,0.014593]
[1771698866131,0.014592,68550.0,68543.0,0.014593]
[1771698866738,0.014592,68549.0,68543.0,0.014593]
[1771698866936,0.014592,68549.0,68541.0,0.015593]
[1771698867129,0.014592,68549.0,68542.0,0.014593]
[1771698868141,0.014592,68548.0,68542.0,0.014593]
[1771698868945,0.014589,68562.0,68549.0,0.014592]
[1771698869141,0.01459,68557.0,68550.0,0.014592]
[1771698870342,0.014591,68556.0,68549.0,0.014592]
[1771698871644,0.014591,68556.0,68550.0,0.014592]
[1771698873338,0.015591,68556.0,68550.0,0.014592]
[1771698875646,0.015591,68556.0,68549.0,0.014592]
[1771698876347,0.014591,68555.0,68548.0,0.014592]
[1771698878745,0.014591,68555.0,68548.0,0.029184]
[1771698879054,0.014591,68555.0,68549.0,0.00088]
[1771698879241,0.014591,68555.0,68548.0,0.029184]
[1771698879546,0.015591,68555.0,68548.0,0.014592]
[1771698880142,0.015591,68555.0,68549.0,0.014592]
[1771698886551,0.015591,68555.0,68548.0,0.014592]
[1771698887052,0.030182,68555.0,68548.0,0.014592]
[1771698887446,0.015591,68555.0,68548.0,0.014592]
[1771698888053,0.014591,68555.0,68549.0,0.0008]
[1771698888254,0.015591,68555.0,68548.0,0.014592]
[1771698889253,0.030182,68555.0,68548.0,0.014592]
[1771698889756,0.029182,68555.0,68548.0,0.014592]
[1771698889949,0.030182,68555.0,68548.0,0.014592]
[1771698890457,0.014592,68548.0,68539.0,0.014594]
[1771698890646,0.029184,68548.0,68541.0,0.014594]
[1771698890846,0.014593,68547.0,68541.0,0.014594]
[1771698892758,0.014593,68542.0,68535.0,0.014595]
[1771698893052,0.19180128,68551.0,68522.0,0.4672]
[1771698893053,0.014592,68548.0,68542.0,0.014593]
[1771698893448,0.014592,68547.0,68542.0,0.014593]
[1771698894460,0.01459,68557.0,68542.0,0.014593]
[1771698894461,0.01459,68557.0,68546.0,0.014592]
[1771698894759,0.014591,68554.0,68547.0,0.014592]
[1771698894952,0.014589,68565.0,68558.0,0.01459]
[1771698895148,0.22201116,68564.0,68555.0,0.17720928]
[1771698895454,0.22201116,68563.0,68556.0,0.01459]
[1771698895647,0.014589,68561.0,68555.0,0.17720928]
[1771698896052,0.01459,68560.0,68555.0,0.17720928]
[1771698896249,0.014589,68561.0,68552.0,0.014591]
[1771698896559,0.01459,68560.0,68552.0,0.014591]
[1771698896753,0.014589,68561.0,68553.0,0.014591]
[1771698897054,0.01459,68561.0,68553.0,0.014591]
[1771698897447,0.014589,68565.0,68551.0,0.014591]
[1771698897651,0.014588,68569.0,68557.0,0.01459]
[1771698897854,0.014588,68569.0,68561.0,0.014589]
[1771698898058,0.014588,68568.0,68561.0,0.014589]
[1771698898351,0.40265354,68563.0,68541.0,0.43547668]
[1771698898547,0.014594,68538.0,68531.0,0.33235782]
[1771698898744,0.014594,68538.0,68524.0,0.54320633]
[1771698898745,0.40265354,68543.0,68517.0,0.014599]
[1771698898947,0.40265354,68539.0,68521.0,0.014598]
[1771698899153,0.014593,68546.0,68530.0,0.014596]
[1771698899453,0.41724654,68547.0,68529.0,0.17720928]
[1771698899660,0.014593,68545.0,68536.0,0.014595]
[1771698899854,0.014593,68544.0,68534.0,0.014595]